Cogmind - Beta 9.4 @@@ ROGUE MODE // 2020.03.18 @ 21:46:10 Player: Nalzok Result: Destroyed by H-77 Assassin with Coil Gun Performance ------------- Evolutions (6) 3000 Regions Visited (17) 3400 Robots Destroyed (174) 870 Value Destroyed (6689) 6689 Prototype IDs (42) 840 Alien Tech Used (0) 0 Bonus (2886) 2886 TOTAL SCORE: 17685 Bonus ------- High Alert Combat Kills 73 Follower Combat Kills 1641 Aligned with FarCom 300 Met Data Miner 300 Built Enhanced Grunts 300 A7 Reached Mainframe 300 Friendly Fire -28 Cogmind --------- Core Integrity 0/1150 Matter 2/300 Energy 100/100 System Corruption 6% Temperature Cool (0) Movement Core (50) Location -4/Factory Parts ------- > --- POWER (2) -------- (None) > --- PROPULSION (4) --- (None) > --- UTILITY (9) ------ (None) > --- WEAPON (4) ------- (None) > --- INVENTORY (4) ---- Centrium Medium Armor Plating Improved System Shield Improved Remote Datajack Peak State ------------ > --- POWER ------------ Light Nuclear Core Micro Fission Core > --- PROPULSION ------- Armored Leg Myomer Leg Myomer Leg Myomer Leg > --- UTILITY ---------- Advanced Heat Sink Medium Storage Unit Large Storage Unit High-capacity Storage Unit Improved Energy Well Advanced Signal Interpreter 0b10 Decoder Chip [Skirmisher] EM Shield Improved Hacking Suite > --- WEAPON ----------- High-powered Shotgun Coil Gun KE Penetrator Heavy Pick > --- INVENTORY -------- Quantum Reactor Carbon-fiber Leg Myomer Leg Myomer Leg Advanced Cryofiber Web Improved Energy Well Centrium Medium Armor Plating EM Shield Advanced Hacking Suite System Shield Improved System Shield Tesla Rifle Matter Neutralizer Heavy Gauss Cannon Guided EMP Blaster Heavy Shock Bomb Launcher Precision Rocket Launcher Longsword +1 [Rating: 99] Favorites ----------- Power Quantum Reactor Engine Light Ion Engine Power Core Micro Nuclear Core Reactor Quantum Reactor Propulsion Flexi-carbon Leg Treads Light Treads Leg Flexi-carbon Leg Wheel Wheel Hover Unit Improved Gravmag System Utility 0b10 Decoder Chip [Skirmisher] Device Advanced Heat Sink Storage High-capacity Storage Unit Processor 0b10 Decoder Chip [Skirmisher] Hackware Improved Hacking Suite Protection Improved Light Armor Plating Weapon Light Assault Rifle Energy Gun Advanced Variable Charge Gun Energy Cannon EM Pulse Cannon Ballistic Gun Light Assault Rifle Ballistic Cannon Bore Cannon Launcher Advanced EMP Blaster Impact Weapon Flail Slashing Weapon Makeshift Sword Piercing Weapon Heavy Pick Build | -11 -10 -10 -10 -9 -8 -7 -7 -7 -7 -6 -6 -6 -6 -6 -6 -5 -4 ------- Run | Scr Mat Min Exi Min Mat Fac Low Low Dat Pro Fac Ext Cet Arc Hub Fac Fac Slots Evolved 12 | . . . . . 4 2 . . . . 2 . . . . 2 2 Power 1 | . . . . . . . . . . . . . . . . . 1 Propulsion 2 | . . . . . . . . . . . 2 . . . . . . Utility 7 | . . . . . 4 2 . . . . . . . . . . 1 Weapon 2 | . . . . . . . . . . . . . . . . 2 . Parts Attached 280 | . 6 5 3 11 32 18 1 2 . 16 27 53 17 5 6 38 40 Power 24 | . 1 1 . 3 3 2 . . . 1 . 6 2 . . . 5 Engine 13 | . 1 1 . 3 3 . . . . . . 3 1 . . . 1 Core 9 | . . . . . . 2 . . . 1 . 3 . . . . 3 Reactor 2 | . . . . . . . . . . . . . 1 . . . 1 Propulsion 71 | . 1 3 2 2 4 4 . . . 1 6 22 6 . 3 7 10 Treads 5 | . . . . . . . . . . . 1 4 . . . . . Leg 41 | . 1 3 . . . . . . . 1 . 11 6 . 3 7 9 Wheel 24 | . . . 2 2 4 4 . . . . 4 7 . . . . 1 Hover 1 | . . . . . . . . . . . 1 . . . . . . Flight . | . . . . . . . . . . . . . . . . . . Utility 70 | . 3 . 1 . 11 7 1 . . 6 8 11 3 3 2 9 5 Device 23 | . . . . . 4 4 . . . . . 5 . 2 2 4 2 Storage 12 | . 2 . 1 . . 1 1 . . 2 2 . . . . 2 1 Processor 10 | . . . . . 1 1 . . . 2 1 2 . . . 2 1 Hackware 1 | . . . . . . . . . . . . . . 1 . . . Protection 24 | . 1 . . . 6 1 . . . 2 5 4 3 . . 1 1 Artifact . | . . . . . . . . . . . . . . . . . . Weapon 115 | . 1 1 . 6 14 5 . 2 . 8 13 14 6 2 1 22 20 Energy Gun 19 | . . 1 . 3 2 . . 1 . . . 1 2 . . 4 5 Energy Cannon 19 | . . . . . 5 . . . . 2 3 1 . . . 5 3 Ballistic Gun 38 | . 1 . . 2 4 4 . . . 4 3 6 2 2 . 7 3 Ballistic Cannon 7 | . . . . . . . . . . . 3 1 . . . . 3 Launcher 19 | . . . . 1 1 . . 1 . 2 2 3 2 . . 3 4 Special Weapon . | . . . . . . . . . . . . . . . . . . Impact Weapon 1 | . . . . . . . . . . . . . . . . 1 . Slashing Weapon 7 | . . . . . 2 1 . . . . 2 2 . . . . . Piercing Weapon 5 | . . . . . . . . . . . . . . . 1 2 2 Special Melee Weapon . | . . . . . . . . . . . . . . . . . . Unidentified Prototypes 9 | . . . . . 1 . . . . 2 3 . 2 1 . . . Parts Lost 96 | . 1 1 . 4 4 2 . 2 . 9 2 17 1 . . 12 41 Power 14 | . 1 . . 1 1 . . . . 1 . 3 1 . . . 6 Propulsion 24 | . . . . 2 1 . . 1 . 1 . 4 . . . 4 11 Utility 18 | . . . . . . 1 . . . 2 1 5 . . . 3 6 Weapon 40 | . . 1 . 1 2 1 . 1 . 5 1 5 . . . 5 18 Highest Loss Streak 10 | . 1 1 . 4 1 2 . 1 . 6 2 10 1 . . 3 10 Average Slot Usage (%) 90 | . 96 99 95 83 86 87 92 84 84 82 85 93 99 100 100 96 77 Engine 3 | . 12 14 14 14 9 . . . . . . 2 . . . . . Core 2 | . . . . . . 6 7 7 7 6 6 2 . . . . 5 Reactor 1 | . . . . . . . . . . . . . 4 6 6 5 1 Leg 11 | . 28 28 23 . . . . . . 5 5 7 25 26 26 21 13 Wheel 6 | . . . 4 27 16 15 15 7 7 4 5 11 . . . . . Device 9 | . . . . . 17 13 23 23 23 11 4 7 6 11 6 5 5 Storage 12 | . 14 14 14 14 9 7 7 7 7 12 14 20 13 13 13 11 18 Processor 13 | . . . . . 6 13 15 15 15 22 15 18 26 20 20 15 11 Hackware 1 | . . . . . . . . . . . . . . . 6 5 3 Protection 6 | . 12 14 10 . 11 13 7 7 7 3 12 5 5 6 6 4 . Energy Gun 3 | . . 2 14 13 1 . . 6 7 1 . . 5 6 5 4 2 Energy Cannon 1 | . . . . . 8 . . . . 1 5 1 . . . 2 . Ballistic Gun 8 | . 28 25 14 13 5 13 15 . . 5 3 4 3 6 6 7 6 Launcher 1 | . . . . . . . . 6 7 3 . 2 3 . . . 1 Naked Turns 1 | . . . . . . . . . . . . . . . . . 1 Heaviest Build 123 | 11 40 40 85 88 106 105 101 104 104 111 117 95 79 80 78 95 123 Greatest Support 91 | 20 20 20 26 26 32 26 26 26 10 28 60 83 70 70 71 80 91 Greatest Overweight (x) 23 | . 1 1 4 8 9 5 3 10 10 10 4 18 1 1 1 2 23 Average Overweight (x) 2 | . . 1 1 3 4 3 3 9 10 5 3 . . 1 1 1 1 Largest Inventory Capacity 26 | 6 12 12 24 24 24 26 24 24 24 24 24 16 16 16 16 16 22 Average Capacity 19 | 6 6 12 15 24 24 24 23 24 24 23 20 16 16 16 16 16 19 Most Carried 24 | 5 6 12 15 22 24 24 24 24 24 24 23 16 16 16 16 16 19 Average Carried 17 | 5 5 9 11 16 23 23 23 23 24 21 17 15 15 15 15 15 15 Final Capacity 24 | 6 12 12 24 24 24 24 24 24 24 24 16 16 16 16 16 16 4 Final Carried 24 | 4 6 12 11 22 24 24 24 24 24 18 16 16 16 16 16 16 3 Class Distribution -------------------- 51% | Scavenger-Mutant 24% | Hauler-Mutant 8% | Scavenger-Skirmisher 7% | Mutant 4% | Hauler-Skirmisher Dominant Class ---------------- Mutant | -10/Materials Mutant | -10/Mines Mutant | -10/Exiles Hauler-Mutant | -9/Mines Hauler-Skirmisher | -8/Materials Scavenger-Mutant | -7/Factory Scavenger-Mutant | -7/Lower Caves Hauler-Mutant | -7/Lower Caves Hauler-Mutant | -7/Data Miner Hauler-Mutant | -6/Proximity Caves Hauler-Mutant | -6/Factory Scavenger-Mutant | -6/Extension Scavenger-Mutant | -6/Cetus Scavenger-Mutant | -6/Archives Scavenger-Mutant | -6/Hub_04(d) Scavenger-Mutant | -5/Factory Scavenger-Mutant | -4/Factory Resources | -11 -10 -10 -10 -9 -8 -7 -7 -7 -7 -6 -6 -6 -6 -6 -6 -5 -4 ----------- Run | Scr Mat Min Exi Min Mat Fac Low Low Dat Pro Fac Ext Cet Arc Hub Fac Fac Matter Collected 5366 | 200 93 107 10 144 347 361 82 63 . 407 365 1221 260 118 88 920 580 Remotely . | . . . . . . . . . . . . . . . . . . Salvage Created 8094 | . 233 205 . 301 724 438 43 293 . 405 365 1468 339 197 299 1432 1352 Parts 391 | . 16 9 . 19 42 17 5 16 . 29 11 69 11 15 17 54 61 Haulers Intercepted 2 | . . . . . . . . . . . . 1 . . . 1 . Recyclers Shooed 13 | . . 1 . 2 1 1 . . . . 1 3 . . . 2 2 Parts Field Recycled . | . . . . . . . . . . . . . . . . . . Retrieved Matter . | . . . . . . . . . . . . . . . . . . Parts Self-Destructed 44 | . . . . . . . 5 12 . 27 . . . . . . . Prevented 4 | . . . . . . . . 4 . . . . . . . . . Kills | -11 -10 -10 -10 -9 -8 -7 -7 -7 -7 -6 -6 -6 -6 -6 -6 -5 -4 ------- Run | Scr Mat Min Exi Min Mat Fac Low Low Dat Pro Fac Ext Cet Arc Hub Fac Fac Combat Hostiles Destroyed 131 | . 7 2 . 7 14 5 1 9 . 17 1 17 5 . 5 13 28 Melee 1 | . . . . . . . . . . . . . . . . 1 . Guns 64 | . 7 2 . 6 5 5 1 3 . 8 1 5 . . 5 9 7 Cannons 19 | . . . . . 7 . . . . . . 5 . . . 1 6 AOE 41 | . . . . 1 1 . . 6 . 9 . 6 3 . . 2 13 Classes Destroyed 14 | . 2 2 . 1 4 1 . . . . . 2 . . . 2 . Worker 7 | . . . . 1 1 1 . . . . . 1 . . . 1 2 Builder 6 | . . 1 . . . . . . . . . 3 . . . 1 1 Tunneler 2 | . . . . . . . . . . . . . . . . 1 1 Hauler 2 | . . . . . . . . . . . . 1 . . . 1 . Recycler 14 | . . 1 . 1 1 2 . . . . 2 2 . . . 3 2 Operator 8 | . . . . . 1 1 . . . . . 1 . 5 . . . Watcher 4 | . . . . . . . . . . . . . . . . 4 . Swarmer 44 | . 3 . . 4 4 3 . 8 . 12 . . . . . . 10 Grunt 43 | . 4 2 . 3 3 . . . . 4 . 8 4 . 3 6 6 Duelist 2 | . . . . . 1 . . . . . . 1 . . . . . Sentry 18 | . . . . . 5 1 . 1 . 1 1 3 . . 1 1 4 Hunter 11 | . . . . . 1 . . . . . . 3 . . . 3 4 Programmer 10 | . . . . . . 1 1 . . . . . . . 1 3 4 Behemoth 2 | . . . . . . . . . . . . 2 . . . . . Cetus Guard 1 | . . . . . . . . . . . . . 1 . . . . Best Kill Streak 16 | . 5 2 . 3 4 6 1 4 . 4 2 6 4 3 2 3 16 Combat Bots Only 12 | . 5 2 . 3 4 2 1 4 . 4 1 5 4 . 2 2 12 Max Kills in Single Turn 3 | . 1 1 . 2 1 1 1 3 . 2 1 3 2 1 2 2 3 Gunslinging 1 | . . . . . . . . . . . . . . . 1 . . Exploded 3 | . . . . 1 1 . . 3 . 2 . 3 2 . . 1 3 Melee 1 | . . . . . . . . . . . . . . . . 1 . Uniques/NPCs Destroyed . | . . . . . . . . . . . . . . . . . . Combat | -11 -10 -10 -10 -9 -8 -7 -7 -7 -7 -6 -6 -6 -6 -6 -6 -5 -4 -------- Run | Scr Mat Min Exi Min Mat Fac Low Low Dat Pro Fac Ext Cet Arc Hub Fac Fac Damage Taken 16472 | . 467 167 . 407 747 495 61 427 . 1369 328 2505 206 . 199 3108 5986 Core 2560 | . 126 27 . 83 52 87 . 51 . 230 . 340 52 . 34 322 1156 Absorbed by Shields 473 | . . . . . . . . . . . . 98 30 . . 164 181 Core Remaining (%) 59 | 100 . . . 5 90 . . . . 47 . . . . 49 67 . Volleys Fired 529 | . 29 22 . 30 50 28 4 16 . 35 16 95 16 17 7 60 104 Largest 4 | . 2 2 . 2 2 2 2 2 . 2 2 2 2 2 2 4 4 Hottest 230 | . 40 40 . 60 131 46 46 86 . 59 90 147 108 113 113 200 230 Shots Fired 949 | . 58 42 . 58 86 41 8 24 . 50 29 167 28 34 14 139 171 Gun 727 | . 58 42 . 56 56 41 8 21 . 41 19 99 21 34 14 116 101 Cannon 161 | . . . . . 30 . . . . . 10 55 . . . 15 51 Launcher 61 | . . . . 2 . . . 3 . 9 . 13 7 . . 8 19 Special . | . . . . . . . . . . . . . . . . . . Kinetic 634 | . 58 42 . 28 39 41 8 11 . 41 25 127 15 17 7 95 80 Thermal 200 | . . . . 28 27 . . . . . . 27 6 17 7 34 54 Explosive 30 | . . . . 2 . . . . . 9 . . . . . 8 11 Electromagnetic 85 | . . . . . 20 . . 13 . . 4 13 7 . . 2 26 Robot Hit Streak 16 | . 9 14 . 6 10 6 7 7 . 6 4 9 4 6 11 16 9 Robot Miss Streak 11 | . 4 2 . 3 2 3 1 3 . 5 3 11 2 4 3 6 4 Penetration Max 1 | . . . . . . . . . . . . 1 . 1 . 1 1 Secondary Targets 2 | . . . . . . . . . . . . . . . 1 . 1 Max Gunslinging Chain 1 | . . . . . . . . . . . . . . . 1 . 1 Shots Hit Robots 578 | . 37 31 . 34 62 21 6 15 . 29 17 99 8 18 11 90 100 Core Hits 395 | . 14 10 . 17 29 17 2 14 . 42 8 86 13 10 8 55 70 Critical Hits 43 | . . . . . . . . . . . 6 16 . 2 1 6 12 Critical Kills 16 | . . . . . . . . . . . 3 4 . 2 1 3 3 Critical Parts Destroyed 26 | . . . . . . . . . . . 3 11 . . . 3 9 Melee Attacks 84 | . . . . . 5 2 . . . . 8 6 . . 2 54 7 Impact 1 | . . . . . . . . . . . . . . . . 1 . Slashing 21 | . . . . . 5 2 . . . . 8 6 . . . . . Piercing 62 | . . . . . . . . . . . . . . . 2 53 7 Sneak Attacks 6 | . . . . . . . . . . . 1 . . . . 5 . Combat Hostiles . | . . . . . . . . . . . . . . . . . . Follow-up Attacks . | . . . . . . . . . . . . . . . . . . Damage Inflicted 17851 | . 330 209 . 386 1296 453 104 419 . 1241 359 3482 622 595 304 3373 4678 Guns 8084 | . 330 209 . 324 555 388 104 195 . 389 125 1749 149 595 304 1396 1272 Cannons 3446 | . . . . . 494 . . . . . 120 770 . . . 473 1589 Explosions 5541 | . . . . 62 247 65 . 224 . 852 . 963 473 . . 838 1817 Melee 780 | . . . . . . . . . . . 114 . . . . 666 . Ramming . | . . . . . . . . . . . . . . . . . . Kinetic 7386 | . 330 209 . 126 392 388 104 135 . 389 225 1857 149 258 139 956 1729 Thermal 3441 | . . . . 198 345 . . . . . . 777 . 337 165 915 704 Explosive 3232 | . . . . 62 . . . . . 852 . . . . . 747 1571 Electromagnetic 3012 | . . . . . 559 65 . 284 . . 20 848 473 . . 89 674 Impact . | . . . . . . . . . . . . . . . . . . Slashing 114 | . . . . . . . . . . . 114 . . . . . . Piercing 666 | . . . . . . . . . . . . . . . . 666 . Highest Corruption 17 | . . . . . . . . . . . . . . . . 17 6 Average Corruption 9 | . . . . . . . . . . . . . . . . 10 5 Corruption Purged . | . . . . . . . . . . . . . . . . . . Effects 64 | . . . . . . . . . . . . . . . . 52 12 Message Errors 14 | . . . . . . . . . . . . . . . . 10 4 Matter Fused 12 | . . . . . . . . . . . . . . . . 9 3 Heat Flow Errors 6 | . . . . . . . . . . . . . . . . 4 2 Energy Discharges 8 | . . . . . . . . . . . . . . . . 7 1 Parts Rejected 1 | . . . . . . . . . . . . . . . . 1 . Data Loss (minor) 5 | . . . . . . . . . . . . . . . . 5 . Data Loss (major) 1 | . . . . . . . . . . . . . . . . 1 . Misfires 1 | . . . . . . . . . . . . . . . . 1 . Misdirections 5 | . . . . . . . . . . . . . . . . 5 . Targeting Errors 10 | . . . . . . . . . . . . . . . . 9 1 Weapon Failures 1 | . . . . . . . . . . . . . . . . . 1 Overload Shots . | . . . . . . . . . . . . . . . . . . Overflow Damage 494 | . . . . . 1 . . . . 6 44 44 . . . 187 212 Projectiles 125 | . . . . . . . . . . . . 44 . . . 17 64 Explosions 172 | . . . . . 1 . . . . 6 . . . . . 17 148 Melee 197 | . . . . . . . . . . . 44 . . . . 153 . Knockbacks 15 | . . . . . . . . . . . 1 2 . . . . 12 Impact . | . . . . . . . . . . . . . . . . . . Kinetic 14 | . . . . . . . . . . . 1 2 . . . . 11 Secondary 1 | . . . . . . . . . . . . . . . . . 1 Self-Inflicted Damage 417 | . . . . . 78 29 . 11 . . . 21 . . . 99 179 Shots 14 | . . . . . 2 1 . 1 . . . 1 . . . 3 6 Rammed . | . . . . . . . . . . . . . . . . . . Targets Rammed . | . . . . . . . . . . . . . . . . . . Kicked . | . . . . . . . . . . . . . . . . . . Crushed . | . . . . . . . . . . . . . . . . . . Highest Temperature 530 | . 30 9 . 109 108 4 . 4 . 6 145 171 . . 11 231 530 Average Temperature 92 | . 11 7 . 31 29 4 . 4 . 3 57 65 . . 4 52 175 Received Heat Transfer 2509 | . 207 93 . 153 252 30 . 84 . 207 84 482 43 . 57 202 615 Effects 23 | . . . . . . . . . . . . . . . . . 23 Shutdowns 5 | . . . . . . . . . . . . . . . . . 5 Energy Bleed 2 | . . . . . . . . . . . . . . . . . 2 Interference 5 | . . . . . . . . . . . . . . . . . 5 Matter Decay 1 | . . . . . . . . . . . . . . . . . 1 Short Circuit 3 | . . . . . . . . . . . . . . . . . 3 Damage (minor) 5 | . . . . . . . . . . . . . . . . . 5 Damage (major) 2 | . . . . . . . . . . . . . . . . . 2 Siege Activations . | . . . . . . . . . . . . . . . . . . Robots Corrupted 6 | . . . . . 1 . . . . . . 1 2 . . . 2 Combat Hostiles 6 | . . . . . 1 . . . . . . 1 2 . . . 2 Parts Fried 11 | . . . . . 2 . . . . . . 4 1 . . 3 1 Impact Corruptions . | . . . . . . . . . . . . . . . . . . Robots Melted . | . . . . . . . . . . . . . . . . . . Combat Hostiles . | . . . . . . . . . . . . . . . . . . Parts Melted 6 | . . . . . 1 . . . . . . . . 1 1 . 3 Heat Transferred 4756 | . . . . 450 668 . . . . . . 880 . 444 185 1093 1036 Parts Sabotaged . | . . . . . . . . . . . . . . . . . . Parts Stolen . | . . . . . . . . . . . . . . . . . . Parts Stripped . | . . . . . . . . . . . . . . . . . . Power Chain Reactions 11 | . . . . . 2 . . . . . . 8 . . . 1 . Missiles Intercepted . | . . . . . . . . . . . . . . . . . . Alert | -11 -10 -10 -10 -9 -8 -7 -7 -7 -7 -6 -6 -6 -6 -6 -6 -5 -4 ------- Run | Scr Mat Min Exi Min Mat Fac Low Low Dat Pro Fac Ext Cet Arc Hub Fac Fac Peak Influence 768 | . 175 172 . 127 335 102 . . . . 71 274 768 430 538 354 362 Average Influence 153 | . 116 56 . 45 125 44 . . . . 43 105 427 339 242 195 213 Maximum Alert Level 3 | . . . . . 1 . . . . . . 1 3 2 2 1 1 Low Security (%) 72 | 100 100 100 . 100 78 100 . . . . 100 91 39 . 54 51 51 Level 1 22 | . . . . . 21 . . . . . . 8 1 85 17 48 48 Level 2 4 | . . . . . . . . . . . . . 46 14 28 . . Level 3 . | . . . . . . . . . . . . . 12 . . . . Level 4 . | . . . . . . . . . . . . . . . . . . Level 5 . | . . . . . . . . . . . . . . . . . . High Security . | . . . . . . . . . . . . . . . . . . Max Security . | . . . . . . . . . . . . . . . . . . Squads Dispatched 35 | . 2 . . 1 . 4 . . . . 2 5 2 . 6 6 7 Investigation 6 | . . . . 1 . 1 . . . . . . 2 . 1 . 1 Extermination 10 | . . . . . . 2 . . . . 2 . . . 1 3 2 Reinforcement 19 | . 2 . . . . 1 . . . . . 5 . . 4 3 4 Assault . | . . . . . . . . . . . . . . . . . . Garrison . | . . . . . . . . . . . . . . . . . . Intercept . | . . . . . . . . . . . . . . . . . . Construction Impeded 8 | . . . . . . . . . . . . 3 . . . 3 2 Haulers Reinforced 2 | . . . . . . . . . . . . . . . . . 2 Stealth | -11 -10 -10 -10 -9 -8 -7 -7 -7 -7 -6 -6 -6 -6 -6 -6 -5 -4 --------- Run | Scr Mat Min Exi Min Mat Fac Low Low Dat Pro Fac Ext Cet Arc Hub Fac Fac Distress Signals 13 | . 2 . . . . 1 . . . . . 2 1 . 1 2 4 Communications Jammed . | . . . . . . . . . . . . . . . . . . Distress Signals . | . . . . . . . . . . . . . . . . . . Times Spotted 244 | . 13 6 . 10 19 6 1 10 . 19 4 43 12 16 13 29 43 Peak Tracking Total 7 | . 7 2 . 4 4 3 1 4 . 4 2 5 5 . 5 6 6 Tactical Retreats 20 | . . . . . 4 . . 1 . 1 1 2 . . 1 5 5 Traps | -11 -10 -10 -10 -9 -8 -7 -7 -7 -7 -6 -6 -6 -6 -6 -6 -5 -4 ------- Run | Scr Mat Min Exi Min Mat Fac Low Low Dat Pro Fac Ext Cet Arc Hub Fac Fac Traps Triggered 10 | . . . . . 2 1 . . . . . 2 . . 1 2 2 Indirectly . | . . . . . . . . . . . . . . . . . . Trap Hack Attempts . | . . . . . . . . . . . . . . . . . . Triggered . | . . . . . . . . . . . . . . . . . . Disarmed . | . . . . . . . . . . . . . . . . . . Reprogrammed . | . . . . . . . . . . . . . . . . . . Reused . | . . . . . . . . . . . . . . . . . . Traps Extracted . | . . . . . . . . . . . . . . . . . . Installed . | . . . . . . . . . . . . . . . . . . Triggered . | . . . . . . . . . . . . . . . . . . Machines | -11 -10 -10 -10 -9 -8 -7 -7 -7 -7 -6 -6 -6 -6 -6 -6 -5 -4 ---------- Run | Scr Mat Min Exi Min Mat Fac Low Low Dat Pro Fac Ext Cet Arc Hub Fac Fac Machines Disabled 22 | . . . . . 3 4 . . . . . 5 5 2 . 2 1 Max in Single Turn 4 | . . . . . 1 4 . . . . . 2 1 1 . 1 1 Machines Sabotaged 1 | . . . . 1 . . . . . . . . . . . . . Garrisons Compromised . | . . . . . . . . . . . . . . . . . . Overloaded Fab Kills . | . . . . . . . . . . . . . . . . . . Fab Network Shutdowns . | . . . . . . . . . . . . . . . . . . Hacking | -11 -10 -10 -10 -9 -8 -7 -7 -7 -7 -6 -6 -6 -6 -6 -6 -5 -4 --------- Run | Scr Mat Min Exi Min Mat Fac Low Low Dat Pro Fac Ext Cet Arc Hub Fac Fac Machines Accessed 38 | . 1 . 2 1 7 3 . . 4 . 3 7 3 1 1 4 1 Terminals 29 | . 1 . . 1 7 2 . . . . 3 7 3 . 1 3 1 Fabricators 1 | . . . . . . . . . . . . . . . . 1 . Repair Stations . | . . . . . . . . . . . . . . . . . . Recycling Units . | . . . . . . . . . . . . . . . . . . Scanalyzers 1 | . . . . . . 1 . . . . . . . . . . . Garrison Access . | . . . . . . . . . . . . . . . . . . Total Hacks 117 | . 1 . 2 1 16 5 . . 28 . 8 15 7 25 1 6 2 Successful 79 | . 1 . 2 1 7 1 . . 28 . 2 6 1 25 1 4 . Failed 38 | . . . . . 9 4 . . . . 6 9 6 . . 2 2 Catastrophic 7 | . . . . . 1 . . . . . 2 2 1 . . 1 . Database Lockouts . | . . . . . . . . . . . . . . . . . . Manual 55 | . . . 1 1 15 4 . . . . 6 16 4 4 1 3 . Terminals 59 | . 1 . . 1 16 4 . . . . 8 15 7 . 1 4 2 Fabricators 2 | . . . . . . . . . . . . . . . . 2 . Repair Stations . | . . . . . . . . . . . . . . . . . . Recycling Units . | . . . . . . . . . . . . . . . . . . Scanalyzers 1 | . . . . . . 1 . . . . . . . . . . . Garrison Access . | . . . . . . . . . . . . . . . . . . Terminal Hacks 66 | . 1 . 2 . 4 . . . 28 . . 3 1 25 1 1 . Record 38 | . . . 1 . . . . . 11 . . . 1 25 . . . Part Schematic 7 | . . . . . . . . . 7 . . . . . . . . Robot Schematic 7 | . . . . . . . . . 7 . . . . . . . . Prototype ID Bank 3 | . . . . . . . . . 3 . . . . . . . . Level Access Points 1 | . . . . . . . . . . . . 1 . . . . . Branch Access Points 2 | . . . . . 1 . . . . . . 1 . . . . . Alert Level 1 | . 1 . . . . . . . . . . . . . . . . Unreport Threat 4 | . . . . . 3 . . . . . . 1 . . . . . Locate Traps 2 | . . . . . . . . . . . . . . . 1 1 . EX-Prototype ID Bank 1 | . . . 1 . . . . . . . . . . . . . . Fabricator Hacks 1 | . . . . . . . . . . . . . . . . 1 . Load Schematic 1 | . . . . . . . . . . . . . . . . 1 . Repair Station Hacks . | . . . . . . . . . . . . . . . . . . Recycling Unit Hacks . | . . . . . . . . . . . . . . . . . . Scanalyzer . | . . . . . . . . . . . . . . . . . . Garrison Access Hacks . | . . . . . . . . . . . . . . . . . . Unauthorized Hacks 41 | . . . . 2 10 5 . . . . 7 10 2 . . 5 . Terminals 12 | . . . . 1 3 1 . . . . 2 3 . . . 2 . Assimilate 4 | . . . . . 1 . . . . . 1 . . . . 2 . Botnet 4 | . . . . . 1 1 . . . . . 2 . . . . . Detonate 1 | . . . . . 1 . . . . . . . . . . . . Operators 2 | . . . . . . . . . . . 1 1 . . . . . Sabotage 1 | . . . . 1 . . . . . . . . . . . . . Fabricators . | . . . . . . . . . . . . . . . . . . Repair Stations . | . . . . . . . . . . . . . . . . . . Recycling Units . | . . . . . . . . . . . . . . . . . . Scanalyzers . | . . . . . . . . . . . . . . . . . . Garrison Access . | . . . . . . . . . . . . . . . . . . Data Cores Recovered . | . . . . . . . . . . . . . . . . . . Used . | . . . . . . . . . . . . . . . . . . Hacking Detections 26 | . . . . . 7 3 . . . . 2 7 3 . 1 2 1 Full Trace Events 2 | . . . . . . . . . . . . . 2 . . . . Feedback Events . | . . . . . . . . . . . . . . . . . . Feedback Blocked . | . . . . . . . . . . . . . . . . . . Robot Schematics Acquired 7 | . . . . . . . . . 7 . . . . . . . . Robots Built . | . . . . . . . . . . . . . . . . . . Matter . | . . . . . . . . . . . . . . . . . . Time . | . . . . . . . . . . . . . . . . . . Total Robot Build Rating . | . . . . . . . . . . . . . . . . . . Part Schematics Acquired 7 | . . . . . . . . . 7 . . . . . . . . Parts Built . | . . . . . . . . . . . . . . . . . . Matter . | . . . . . . . . . . . . . . . . . . Time . | . . . . . . . . . . . . . . . . . . Total Part Build Rating . | . . . . . . . . . . . . . . . . . . Parts Repaired . | . . . . . . . . . . . . . . . . . . Time . | . . . . . . . . . . . . . . . . . . Parts Recycled . | . . . . . . . . . . . . . . . . . . Recycled Matter . | . . . . . . . . . . . . . . . . . . Retrieved Matter . | . . . . . . . . . . . . . . . . . . Retrieved Components . | . . . . . . . . . . . . . . . . . . Parts Scanalyzed . | . . . . . . . . . . . . . . . . . . Part Schematics Acquired . | . . . . . . . . . . . . . . . . . . Parts Damaged . | . . . . . . . . . . . . . . . . . . Bothacking | -11 -10 -10 -10 -9 -8 -7 -7 -7 -7 -6 -6 -6 -6 -6 -6 -5 -4 ------------ Run | Scr Mat Min Exi Min Mat Fac Low Low Dat Pro Fac Ext Cet Arc Hub Fac Fac Used RIF Installer . | . . . . . . . . . . . . . . . . . . Robots Hacked . | . . . . . . . . . . . . . . . . . . Non-combat . | . . . . . . . . . . . . . . . . . . Combat . | . . . . . . . . . . . . . . . . . . Robot Hacks Applied . | . . . . . . . . . . . . . . . . . . Relay Couplers Released . | . . . . . . . . . . . . . . . . . . Robots Rewired 13 | . . . . . . . . . . . . 13 . . . . . Allies Hacked . | . . . . . . . . . . . . . . . . . . Hacks Repelled . | . . . . . . . . . . . . . . . . . . Allies | -11 -10 -10 -10 -9 -8 -7 -7 -7 -7 -6 -6 -6 -6 -6 -6 -5 -4 -------- Run | Scr Mat Min Exi Min Mat Fac Low Low Dat Pro Fac Ext Cet Arc Hub Fac Fac Total Allies 34 | . . 3 . . 1 . . . . 1 1 21 5 . . 2 . Largest Group 10 | . . 3 2 2 1 1 . . . 1 1 10 9 8 5 1 . Highest-Rated Group 672 | . . 40 32 32 10 10 . . . 94 10 319 672 656 397 26 . Highest-Rated Ally 156 | . . 16 16 16 10 10 . . . 94 10 156 156 149 94 26 . Total Orders 24 | . . . . . 2 1 . . . . 2 1 . . 12 6 . STAY 2 | . . . . . . . . . . . . . . . 2 . . GOTO 15 | . . . . . 1 1 . . . . 1 1 . . 7 4 . FOLLOW 4 | . . . . . 1 . . . . . 1 . . . 1 1 . EXPLORE 3 | . . . . . . . . . . . . . . . 2 1 . Ally Attacks 257 | . . 20 . 4 . . . . . 3 . 104 57 22 47 . . Total Damage 7197 | . . 270 . 62 . . . . . 143 . 2196 2151 735 1640 . . Kills 56 | . . 4 . 2 . . . . . 1 . 19 14 4 12 . . Allies Corrupted . | . . . . . . . . . . . . . . . . . . Allies Melted 2 | . . . . . . . . . . 1 . . . . 1 . . Intel | -11 -10 -10 -10 -9 -8 -7 -7 -7 -7 -6 -6 -6 -6 -6 -6 -5 -4 ------- Run | Scr Mat Min Exi Min Mat Fac Low Low Dat Pro Fac Ext Cet Arc Hub Fac Fac Robot Analysis Total . | . . . . . . . . . . . . . . . . . . Derelict Logs Recovered 9 | . . 2 . . . . 2 2 . 3 . . . . . . . Drone Launches 4 | . . . . . . . . . . . . . . . 2 2 . Drone Recoveries . | . . . . . . . . . . . . . . . . . . Decoded 0b10 Intel 65 | . . . . . . . . . . . 3 9 2 . 11 20 20 Garrisons 2 | . . . . . . . . . . . . . . . 1 1 . Patrols 20 | . . . . . . . . . . . . 3 2 . 2 9 4 Reinforcements 16 | . . . . . . . . . . . . 3 . . 3 6 4 Guards 27 | . . . . . . . . . . . 3 3 . . 5 4 12 Exploration | -11 -10 -10 -10 -9 -8 -7 -7 -7 -7 -6 -6 -6 -6 -6 -6 -5 -4 ------------- Run | Scr Mat Min Exi Min Mat Fac Low Low Dat Pro Fac Ext Cet Arc Hub Fac Fac Turns Passed 13306 | 1 192 821 464 472 1250 606 690 799 146 1114 793 1659 515 470 459 1872 983 Spaces Moved 7264 | 1 86 500 298 295 626 393 547 428 82 504 456 933 299 267 250 921 378 Core 10 | . . . . . . . . . . . . 2 . . . . 8 Treads 46 | . . . . . . . . . . . . 46 . . . . . Legs 3686 | 1 86 500 234 . . . . . . 336 63 359 299 267 250 921 370 Wheels 3522 | . . . 64 295 626 393 547 428 82 168 393 526 . . . . . Hover . | . . . . . . . . . . . . . . . . . . Flight . | . . . . . . . . . . . . . . . . . . Fastest Speed 50 | 120 120 150 120 120 120 120 120 120 180 170 110 96 120 150 150 150 50 Average Speed 143 | 120 124 150 148 121 131 120 120 176 180 197 142 118 145 150 150 150 159 Slowest Speed 1200 | 120 150 150 240 160 170 130 120 180 180 210 240 950 150 150 150 180 1200 Overloaded Moves . | . . . . . . . . . . . . . . . . . . Propulsion Burnouts . | . . . . . . . . . . . . . . . . . . Robots Hopped . | . . . . . . . . . . . . . . . . . . Cave-ins Triggered 3 | . . . . . . . . . . . . . . . . 3 . Exploration Rate (%) 51 | 2 24 95 60 59 42 11 77 69 73 66 9 75 83 99 37 26 12 Regions Visited 17 Branch Regions 11 Pre-discovered Areas 3 | . . . 1 . . . 1 . 1 . . . . . . . . Known Exits Taken 3 | . . . . . . . . . . . . 1 . . 1 1 . Unknown Exits Taken 14 | 1 1 1 1 1 1 1 1 1 1 1 1 . 1 1 . . . Scrap Searched 16 | . . 4 . 1 . . 7 2 . 2 . . . . . . . Spaces Dug 62 | . . . . . 5 2 . . . . 7 6 . . 2 33 7 Terrain Destroyed 368 | . . . . 18 15 2 . . . 70 12 45 . 3 4 95 104 Melee 62 | . . . . . 5 2 . . . . 7 6 . . 2 33 7 Projectile 51 | . . . . . . . . . . . 5 26 . 3 2 3 12 AOE 255 | . . . . 18 10 . . . . 70 . 13 . . . 59 85 Actions | -11 -10 -10 -10 -9 -8 -7 -7 -7 -7 -6 -6 -6 -6 -6 -6 -5 -4 --------- Run | Scr Mat Min Exi Min Mat Fac Low Low Dat Pro Fac Ext Cet Arc Hub Fac Fac Total 9127 | 2 126 536 321 353 967 492 575 450 81 580 571 1319 358 310 320 1188 578 Wait 485 | . . 3 2 8 208 27 . . . 2 12 48 5 6 48 79 37 Move 7246 | . 85 499 297 294 625 392 546 427 81 503 455 932 298 266 249 919 378 Hop . | . . . . . . . . . . . . . . . . . . Pick Up 186 | . 2 5 11 9 20 9 22 3 . 20 28 21 5 6 1 13 11 Fast Attach 100 | . 2 . 1 2 11 6 . . . 6 13 22 4 2 . 11 20 Attach 57 | . . 1 2 3 3 2 1 1 . 6 7 10 1 . . 5 15 Detach 12 | . . . 1 1 . . . . . 1 3 4 1 1 . . . Swap 123 | . 4 4 . 6 18 10 . 1 . 4 7 21 12 3 6 22 5 Drop 176 | 2 4 2 7 . 27 16 2 2 . 3 22 35 16 9 6 22 1 Fire 529 | . 29 22 . 30 50 28 4 16 . 35 16 95 16 17 7 60 104 Melee 83 | . . . . . 5 2 . . . . 8 6 . . 2 53 7 Ram . | . . . . . . . . . . . . . . . . . . Kick . | . . . . . . . . . . . . . . . . . . Crush . | . . . . . . . . . . . . . . . . . . Escape Stasis 16 | . . . . . . . . . . . . 15 . . . 1 . Rewire 112 | . . . . . . . . . . . . 110 . . . 2 . Trap . | . . . . . . . . . . . . . . . . . . Miscellaneous 2 | . . . . . . . . . . . . . . . 1 1 . Route ------- -11/Scrapyard -10/Materials -10/Mines (discovered 3 exits: [*Mat x2] / *Exi) -10/Exiles (discovered 2 exits: *Min x2) -9/Mines (discovered 2 exits: *Mat x2) -8/Materials -7/Factory -7/Lower Caves -7/Lower Caves -7/Data Miner -6/Proximity Caves -6/Factory (discovered 4 exits: Fac / *Low x2 / *Ext) -6/Extension (discovered 3 exits: *Fac x2 / *Cet) -6/Cetus -6/Archives (discovered 3 exits: *Fac / *Hub x2) -6/Hub_04(d) -5/Factory -4/Factory History --------- Turn | Location | Event 2 | -11/Scrapyard | Discovered new exit (range 0) 2 | -11/Scrapyard | Entered Materials 119 | -10/Materials | Core integrity fell below 50% 136 | -10/Materials | Discovered new exit (range 16) 194 | -10/Materials | Entered Mines 248 | -10/Mines | Learned Materials emergency access door positions 294 | -10/Mines | Discovered new exit (range 5) 310 | -10/Mines | Build established: Mutant 320 | -10/Mines | Assisted by bots powering up and referring to "LRC-V3" 323 | -10/Mines | Learned Materials interactive machine intel 674 | -10/Mines | Discovered new exit (range 10) 810 | -10/Mines | Build established: Scavenger-Mutant 1005 | -10/Mines | Deemed a non-threat by the Exiles lab entrance 1005 | -10/Mines | Discovered new exit (range 5) 1015 | -10/Mines | Entered Exiles 1015 | -10/Exiles | Accompanied by 2 allies 1038 | -10/Exiles | Discovered new exit (range 15) 1056 | -10/Exiles | Met 8R-AWN 1078 | -10/Exiles | Met EX-HEX 1129 | -10/Exiles | Met EX-BIN 1150 | -10/Exiles | Aligned with FarCom system 1152 | -10/Exiles | Given EX-Vault access code 1160 | -10/Exiles | Build established: Mutant 1186 | -10/Exiles | Opened EX-Vault 1195 | -10/Exiles | Found Longsword +1 1227 | -10/Exiles | Warned to stay clear of 0b10 Research branches 1287 | -10/Exiles | Met EX-DEC 1293 | -10/Exiles | Learned location of Zion (-6) 1461 | -10/Exiles | Discovered new exit (range 15) 1479 | -10/Exiles | Left Exiles lab with Longsword +1 1479 | -10/Exiles | Entered Mines 1479 | -9/Mines | Accompanied by 2 allies 1486 | -9/Mines | Received a Rocket Launcher from a helpful Derelict 1564 | -9/Mines | Core integrity fell below 20% 1621 | -9/Mines | Lost 4 parts (1p2n1w) 1637 | -9/Mines | Build established: Hauler-Mutant 1693 | -9/Mines | Discovered new exit (range 5) 1715 | -9/Mines | A weapon hastily lodged in a ceiling crevice suddenly fell to the ground 1923 | -9/Mines | Discovered new exit (range 10) 1951 | -9/Mines | Entered Materials 1951 | -8/Materials | Evolved 4 slots: Utility x4 1953 | -8/Materials | Loaded intel: 19 interactive machine locations 3035 | -8/Materials | Discovered new exit (range 8) 3070 | -8/Materials | Build established: Hauler-Skirmisher 3201 | -8/Materials | Entered Factory 3201 | -7/Factory | Accompanied by 1 ally 3201 | -7/Factory | Evolved 2 slots: Utility x2 3656 | -7/Factory | Build established: Scavenger-Mutant 3790 | -7/Factory | Discovered new exit (range 5) 3807 | -7/Factory | Entered Lower Caves 3966 | -7/Lower Caves | Learned Factory stockpile data 4392 | -7/Lower Caves | Discovered new exit (range 18) 4497 | -7/Lower Caves | Entered another Lower Caves area 4499 | -7/Lower Caves | Attracted the attention of an 0b10 checkpoint 4695 | -7/Lower Caves | Learned location of 1 exit from Factory 4740 | -7/Lower Caves | Encountered a Warlord checkpoint 4806 | -7/Lower Caves | Build established: Hauler-Mutant 4855 | -7/Lower Caves | Learned Factory stockpile data 5182 | -7/Lower Caves | Discovered new exit (range 6) 5296 | -7/Lower Caves | Entered Data Miner 5296 | -7/Data Miner | Discovered new exit (range 6) 5323 | -7/Data Miner | Met Data Miner 5367 | -7/Data Miner | Learned location of Section 7 (-2) 5367 | -7/Data Miner | Acquired the access code to Warlord's prototype stash 5399 | -7/Data Miner | Received God Mode back door access code from Data Miner 5442 | -7/Data Miner | Entered Proximity Caves 5547 | -6/Proximity Caves | Learned 8 Factory zone layouts 5631 | -6/Proximity Caves | Escorted by Enhanced Grunt 5867 | -6/Proximity Caves | Attracted the attention of an 0b10 checkpoint 6049 | -6/Proximity Caves | Build established: Scavenger-Mutant 6078 | -6/Proximity Caves | Learned 4 Factory zone layouts 6114 | -6/Proximity Caves | Core integrity fell below 50% 6150 | -6/Proximity Caves | Lost 6 parts (1n2u3w) 6369 | -6/Proximity Caves | Build established: Hauler-Mutant 6457 | -6/Proximity Caves | Spotted B-75 Beast 6512 | -6/Proximity Caves | Discovered new exit (range 14) 6556 | -6/Proximity Caves | Entered Factory 6556 | -6/Factory | Evolved 2 slots: Propulsion x2 6557 | -6/Factory | Identified exit to Lower Caves 6558 | -6/Factory | Identified exit to Factory 6882 | -6/Factory | Discovered new exit (range 9) 7043 | -6/Factory | Discovered exit to Lower Caves (range 11) 7349 | -6/Factory | Entered Extension 7349 | -6/Extension | Accompanied by 1 ally 7405 | -6/Extension | Rescued a captive Derelict 7408 | -6/Extension | Rescued a captive Derelict 7602 | -6/Extension | Rescued a captive Derelict 7687 | -6/Extension | Build established: Scavenger-Mutant 7854 | -6/Extension | Spotted B-75 Beast 7860 | -6/Extension | Spotted B-75 Beast 7926 | -6/Extension | Destroyed B-75 Beast 7953 | -6/Extension | Destroyed B-75 Beast 7974 | -6/Extension | Disrupted transfer network 8383 | -6/Extension | Lost 10 parts (2p3n2u3w) 8678 | -6/Extension | Rescued A7 8702 | -6/Extension | Rescued a captive Derelict 8703 | -6/Extension | Identified exit to Cetus 8788 | -6/Extension | Rescued a captive Derelict 8796 | -6/Extension | Rescued a captive Derelict 8854 | -6/Extension | Rescued a captive Derelict 9008 | -6/Extension | Entered Cetus 9008 | -6/Cetus | Accompanied by 7 allies 9013 | -6/Cetus | Acquired a Cetus Manufacturing Module code from A7 9024 | -6/Cetus | Spotted Cetus Guard 9024 | -6/Cetus | Spotted Cetus Guard 9026 | -6/Cetus | Spotted Cetus Guard 9029 | -6/Cetus | Spotted Cetus Guard 9031 | -6/Cetus | Allies destroyed Cetus Guard 9046 | -6/Cetus | Allies destroyed Cetus Guard 9053 | -6/Cetus | Allies destroyed Cetus Guard 9056 | -6/Cetus | Destroyed Cetus Guard 9153 | -6/Cetus | Started Cetus Manufacturing Module 9178 | -6/Cetus | Manufactured an Enhanced Grunt 9203 | -6/Cetus | Manufactured an Enhanced Grunt 9212 | -6/Cetus | Incoming investigation squad redirected 9220 | -6/Cetus | Door terminal overloaded 9228 | -6/Cetus | Manufactured an Enhanced Grunt 9253 | -6/Cetus | Manufactured an Enhanced Grunt 9257 | -6/Cetus | Escorted A7 to Cetus Mainframe 9278 | -6/Cetus | Manufactured an Enhanced Grunt 9359 | -6/Cetus | Discovered new exit (range 19) 9523 | -6/Cetus | Entered Archives 9523 | -6/Archives | Accompanied by 8 allies 9528 | -6/Archives | Received a hacking code to weaken MAIN.C 9546 | -6/Archives | Found Prototype Device 9546 | -6/Archives | Identified Exp. Thermal Shield 9576 | -6/Archives | Discovered new exit (range 20) 9585 | -6/Archives | Unable to access archive contents 9585 | -6/Archives | Unable to access archive contents 9613 | -6/Archives | Unable to access archive contents 9621 | -6/Archives | Discovered exit to Factory (range 16) 9636 | -6/Archives | Unable to access archive contents 9642 | -6/Archives | Discovered new exit (range 17) 9657 | -6/Archives | Unable to access archive contents 9993 | -6/Archives | Entered Hub_04(d) 9993 | -6/Hub_04(d) | Accompanied by 5 allies 10245 | -6/Hub_04(d) | Discovered exit to Factory (range 13) 10336 | -6/Hub_04(d) | Core integrity fell below 50% 10452 | -6/Hub_04(d) | Entered Factory 10452 | -5/Factory | Evolved 2 slots: Weapon x2 11274 | -5/Factory | P-70 Sage assimilated allied Administrator 6b 11300 | -5/Factory | Crushed by falling debris 11515 | -5/Factory | Crushed by falling debris 11553 | -5/Factory | Discovered new exit (range 58) 11831 | -5/Factory | Crushed by falling debris 11832 | -5/Factory | System corruption reached 10% 11862 | -5/Factory | Lost 3 parts (1n2u) 12012 | -5/Factory | Identified exit to Factory 12154 | -5/Factory | Lost 3 parts (1n2w) 12324 | -5/Factory | Entered another Factory area 12324 | -4/Factory | Evolved 2 slots: Power x1, Utility x1 12545 | -4/Factory | Lost 10 parts (2p3n1u4w) 12824 | -4/Factory | Spotted B-86 Titan 12841 | -4/Factory | Incoming investigation squad redirected 12956 | -4/Factory | Lost 9 parts (1p5n1u2w) 13056 | -4/Factory | Lost 8 parts (1p2n1u4w) 13151 | -4/Factory | Core integrity fell below 50% 13200 | -4/Factory | Core integrity fell below 20% 13227 | -4/Factory | Destroyed 12 combat bots 13232 | -4/Factory | Lost 9 parts (2p1n1u5w) 13306 | -4/Factory | Released all parts (8) 13307 | -4/Factory | Destroyed by H-77 Assassin with Coil Gun Last Messages --------------- 13299_ U-05 Engineer repairs door. 13300_ U-05 Engineer lays Concrete. 13300_ Slug penetrates Wall. 13301_ U-05 Engineer lays Concrete. 13301_ K-01 Serf collects debris. 13302_ U-05 Engineer lays Concrete. 13302_ U-05 Engineer builds a Wall. 13302_ U-05 Engineer lays Concrete. 13303_ K-01 Serf collects debris. 13303_ Slug penetrates Wall. 13304_ U-05 Engineer lays Concrete. 13306_ Released Imp. Core Analyzer. 13306_ Released Med. Storage Unit. 13306_ Released Hcp. Storage Unit. 13306_ Released Broken 0b10 Decoder Chip [Skirmisher]. 13306_ Released Broken Adv. Signal Interpreter. 13306_ Released Imp. Energy Well. 13306_ Released Lrg. Storage Unit. 13306_ Released Gui. EMP Blaster. 13307_ Dropped Hvy. Pick. Map ----- +----------------------------------------------------+ | ?????????????????????????????????????????????????? | | ?????????????????????????????????????????????????? | | ?????????????????????????????????????????????????? | | ?????????????????????????????????????????????????? | | ?????????????????????????????????????????????????? | | ?????????????????????????????????????????????????? | | ?????????????????????????????????????????????????? | | ?????????????????????????????????????????????????? | | ?????????????????????????????????????????????????? | | ?????????????????????????????????????????????????? | | ?????????????????????????????????????????????????? | | ?????????????????????????????????????????????????? | | ?????????????????????????????????????????????????? | | ?????????????????????????????????????????????????? | | ?????????????????????????????????????????????????? | | ?????????????????????????????????????????????????? | | ?????????????????????????????????????????????????? | | ?????????????????????????????????????? ?? ???????? | | ??????????????????????????????????? ?????? | | ?????????????????????????????????? ??????? | | ?????????????????????????????????? ??????? | | ????????????????????????????????? ???????? | | ??????????????????????###########? ????????? | | ??????????????????????# != = #?# #????????? | | ?????????????????????## =!!! ### #????????? | | ?????????????????????# ]@!!* ### #????????? | | ????##??????????????## /!]!] ## ########## | | ??? ??????????????#k ! # # ## | | ???" ??????????????## # ## """ " | | ???" ???????????????# ### % ## "" " | | """" ???????????????# h ## # !% | | """" #????????????### ###t#######[ # |! | | "" " =#????#???? % u h = # | | "" " #????? ? % !% + | | #????? % = # | | #?????? #### #u# | | #?????? ???## % | | #??????# #???# # = | | ###????# #???# ##### | | # #????# #???## #???# ## ##### | | # ###### #???## #???# #?? ?????? | | #????# #???# #??? ?????? | | ###### #???# # ????????? | | % ^ ^^ + #???# # ???????? | | ### ##??# + ????????? | | # == ##########"##?# #?????????? | | ## # " =% T###########"### #?????????? | | # ! = "# # #?????????? | | # ! / ## """" """" # ########### | | # ## """" """" + | +----------------------------------------------------+ Best States ------------- Heat Dissipation 83 Coolant Potential 50 Energy Generation 38 Energy Capacity 1020 Matter Stores 300 Matter Capacity 300 Sight Range 20 Terrain Scan Range 20 Terrain Scan Density 10 Armor Coverage 525 Resistance: KI 30 Resistance: TH 30 Resistance: EM 25 Utility Shielding 33 Phase Shifting 10 Evasion (%) 50 Melee Accuracy 5 Core Analysis 8 Recoil Reduction 4 Kinecelleration 30 Salvage Targeting 4 Offensive Hacking 12 Item Schematics ----------------- Combat Drone Bay | -7/Data Miner | Free Lgt. Regenerative Plating | -7/Data Miner | Free Triangulator | -7/Data Miner | Free Exp. Sensor Array | -7/Data Miner | Free Exp. Terrain Scan Processor | -7/Data Miner | Free Exp. Transmission Jammer | -7/Data Miner | Free Mni. Smartbomb Launcher | -7/Data Miner | Free Robot Schematics ------------------ S-27 Virus | -7/Data Miner | Free L-41 Fighter | -7/Data Miner | Free P-70 Sage | -7/Data Miner | Free X-72 Disruptor | -7/Data Miner | Free G-50 Soldier | -7/Data Miner | Free I-36 Angel | -7/Data Miner | Free I-47 Archangel | -7/Data Miner | Free Fabricated ------------ Nothing Alien Tech Used ----------------- None Achievements -------------- Just Shoot The Terminal Main Advantage Project G-00 Challenges ------------ None Game ------ Seed HugeSingularityMagmablaster Manual? 0 Play Time 02:14:48 Cumulative 234.1 hours Start 2020.03.18 @ 11:28:00 End 2020.03.18 @ 21:46:10 Sessions 5 Manual Loads 0 Difficulty Rogue Special Mode None Game No. 360 Rogue 359 Adventurer 0 Explorer 1 Win Type - Total 1 Types 1/0/0/0/0/0/0 Lore% 64 Gallery% 78 Achievement% 53 Wizard Run 0 Options --------- ASCII 0 Keyboard 1 Movement Vi Keybinds 0 Fullscreen 1 Font 14/Cog Map View 72x52 Tactical HUD 1 Map Filters NONE Filters LOW_CONTRAST(13,24,33) Steam 0 RUN: ad84b896-9ee9-43ad-95d4-6913fe47a182